Workbook

Sheet 料金計算
A1: 0.3.2
B2: まねき料金計算シート | G2: by nobu | I2: 人数 | K2: 4 | O2: 計算結果 | AA2: 自動計算エリア
B3: 観音寺店 | F3: FALSE | G3: ワンドリンク | K3: 420 | M3: FALSE | O3: ランク | Q3: =_xlfn.IFS(ISNUMBER(FIND("6",X3)),"0%",ISNUMBER(FIND(7,X3)),"5%",ISNUMBER(FIND("8",X3)),"10%",ISNUMBER(FIND("9",X3)),"15%",ISNUMBER(FIND("10",X3)),"20%",ISNUMBER(FIND("11",X3)),"30%") -> 10% | S3: クーポン | U3: =_xlfn.IFS( ISNUMBER(FIND("AC",X3)),"なし", ISNUMBER(FIND("AE",X3)),"ゲーム100円", ISNUMBER(FIND("AG",X3)),"ゲーム500円", ISNUMBER(FIND("AI",X3)),"ゲーム1000円", ISNUMBER(FIND("AK",X3)),"ゲーム2000円", ISNUMBER(FIND("AM",X3)),"ゲーム3000円", ISNUMBER(FIND("AO",X3)),"ゲーム4000円", ISNUMBER(FIND("AQ",X3)),"ゲーム5000円", ISNUMBER(FIND("AS",X3)),"500円", ISNUMBER(FIND("AU",X3)),"1000円", ISNUMBER(FIND("AW",X3)),"2000円", ISNUMBER(FIND("AY",X3)),"3000円", ISNUMBER(FIND("BA",X3)),"4000円", ISNUMBER(FIND("BC",X3)),"5000円" ) -> ゲーム1000円 | X3: =_xlfn.TEXTSPLIT(BG12,,",") -> AI8 | AA3: 1人当たり | AD3: =IF(M3,K3)+IF(M4,K4)+IF(M5,K5)+IF(O14,M14) -> 605
B4: 宇多津浜街道店 | F4: TRUE | G4: ドリンクバー | K4: =_xlfn.IFS(F3=TRUE,550,F4=TRUE,495,F5=TRUE,500,TRUE,0) -> 495 | M4: TRUE | Q4: =_xlfn.IFS(ISNUMBER(FIND("6",X4)),"0%",ISNUMBER(FIND(7,X4)),"5%",ISNUMBER(FIND("8",X4)),"10%",ISNUMBER(FIND("9",X4)),"15%",ISNUMBER(FIND("10",X4)),"20%",ISNUMBER(FIND("11",X4)),"30%",TRUE,"") ->  | U4: =_xlfn.IFS( ISNUMBER(FIND("AC",X4)),"なし", ISNUMBER(FIND("AE",X4)),"ゲーム100円", ISNUMBER(FIND("AG",X4)),"ゲーム500円", ISNUMBER(FIND("AI",X4)),"ゲーム1000円", ISNUMBER(FIND("AK",X4)),"ゲーム2000円", ISNUMBER(FIND("AM",X4)),"ゲーム3000円", ISNUMBER(FIND("AO",X4)),"ゲーム4000円", ISNUMBER(FIND("AQ",X4)),"ゲーム5000円", ISNUMBER(FIND("AS",X4)),"500円", ISNUMBER(FIND("AU",X4)),"1000円", ISNUMBER(FIND("AW",X4)),"2000円", ISNUMBER(FIND("AY",X4)),"3000円", ISNUMBER(FIND("BA",X4)),"4000円", ISNUMBER(FIND("BC",X4)),"5000円", TRUE,"" ) ->  | AA4: 会計全体 | AD4: =AD3*K2+N16 -> 2420
B5: 高松南新町店 | F5: FALSE | G5: +ソフトクリーム | K5: 110 | M5: TRUE | Q5: =_xlfn.IFS(ISNUMBER(FIND("6",X5)),"0%",ISNUMBER(FIND(7,X5)),"5%",ISNUMBER(FIND("8",X5)),"10%",ISNUMBER(FIND("9",X5)),"15%",ISNUMBER(FIND("10",X5)),"20%",ISNUMBER(FIND("11",X5)),"30%",TRUE,"") ->  | U5: =_xlfn.IFS( ISNUMBER(FIND("AC",X5)),"なし", ISNUMBER(FIND("AE",X5)),"ゲーム100円", ISNUMBER(FIND("AG",X5)),"ゲーム500円", ISNUMBER(FIND("AI",X5)),"ゲーム1000円", ISNUMBER(FIND("AK",X5)),"ゲーム2000円", ISNUMBER(FIND("AM",X5)),"ゲーム3000円", ISNUMBER(FIND("AO",X5)),"ゲーム4000円", ISNUMBER(FIND("AQ",X5)),"ゲーム5000円", ISNUMBER(FIND("AS",X5)),"500円", ISNUMBER(FIND("AU",X5)),"1000円", ISNUMBER(FIND("AW",X5)),"2000円", ISNUMBER(FIND("AY",X5)),"3000円", ISNUMBER(FIND("BA",X5)),"4000円", ISNUMBER(FIND("BC",X5)),"5000円", TRUE,"" ) ->  | AA5: クーポン | AC5: なし | AE5: 100 | AG5: 500 | AI5: 1000 | AK5: 2000 | AM5: 3000 | AO5: 4000 | AQ5: 5000 | AS5: 500 | AU5: 1000 | AW5: 2000 | AY5: 3000 | BA5: 4000 | BC5: 5000
B6: クーポン | D6: 通常 | F6: 500円 | H6: FALSE | I6: ランク | K6: 0 | M6: FALSE | Q6: =_xlfn.IFS(ISNUMBER(FIND("6",X6)),"0%",ISNUMBER(FIND(7,X6)),"5%",ISNUMBER(FIND("8",X6)),"10%",ISNUMBER(FIND("9",X6)),"15%",ISNUMBER(FIND("10",X6)),"20%",ISNUMBER(FIND("11",X6)),"30%",TRUE,"") ->  | U6: =_xlfn.IFS( ISNUMBER(FIND("AC",X6)),"なし", ISNUMBER(FIND("AE",X6)),"ゲーム100円", ISNUMBER(FIND("AG",X6)),"ゲーム500円", ISNUMBER(FIND("AI",X6)),"ゲーム1000円", ISNUMBER(FIND("AK",X6)),"ゲーム2000円", ISNUMBER(FIND("AM",X6)),"ゲーム3000円", ISNUMBER(FIND("AO",X6)),"ゲーム4000円", ISNUMBER(FIND("AQ",X6)),"ゲーム5000円", ISNUMBER(FIND("AS",X6)),"500円", ISNUMBER(FIND("AU",X6)),"1000円", ISNUMBER(FIND("AW",X6)),"2000円", ISNUMBER(FIND("AY",X6)),"3000円", ISNUMBER(FIND("BA",X6)),"4000円", ISNUMBER(FIND("BC",X6)),"5000円", TRUE,"" ) ->  | AA6: 0 | AC6: =IF(M6,AD4*1) -> FALSE | AE6: =IF(AND(H12,AC6>=AE5*2,AC6),AC6-AE5) -> FALSE | AG6: =IF(AND(H13,AC6>=AG5*2,AC6),AC6-AG5) -> FALSE | AI6: =IF(AND(H14,AC6>=AI5*2,AC6),AC6-AI5) -> FALSE | AK6: =IF(AND(H15,AC6>=AK5*2,AC6),AC6-AK5) -> FALSE | AM6: =IF(AND(H16,AC6>=AM5*2,AC6),AC6-AM5) -> FALSE | AO6: =IF(AND(H17,AC6>=AO5*2,AC6),AC6-AO5) -> FALSE | AQ6: =IF(AND(H18,AC6>=AQ5*2,AC6),AC6-AQ5) -> FALSE | AS6: =IF(AND(H6,AC6),AC6-AS5) -> FALSE | AU6: =IF(AND(H7,AC6),AC6-AU5) -> FALSE | AW6: =IF(AND(H8,AC6),AC6-AW5) -> FALSE | AY6: =IF(AND(H9,AC6),AC6-AY5) -> FALSE | BA6: =IF(AND(H10,AC6),AC6-BA5) -> FALSE | BC6: =IF(AND(H11,AC6),AC6-BC5) -> FALSE
F7: 1000円 | H7: FALSE | K7: 0.05 | M7: FALSE | O7: 株主優待券を | R7: =IF(AND(I13,BE12>1000,INT(BE12/1000)<=N13),INT(BE12/1000),"使わない") -> 1 | T7: =IF(AND(I13,BE12>1000,INT(BE12/1000)<=N13),"枚使う","") -> 枚使う | AA7: 0.05 | AC7: =IF(M7,AD4*0.95) -> FALSE | AE7: =IF(AND(H12,AC7>=AE5*2,AC7),AC7-AE5) -> FALSE | AG7: =IF(AND(H13,AC7>=AG5*2,AC7),AC7-AG5) -> FALSE | AI7: =IF(AND(H14,AC7>=AI5*2,AC7),AC7-AI5) -> FALSE | AK7: =IF(AND(H15,AC7>=AK5*2,AC7),AC7-AK5) -> FALSE | AM7: =IF(AND(H16,AC7>=AM5*2,AC7),AC7-AM5) -> FALSE | AO7: =IF(AND(H17,AC7>=AO5*2,AC7),AC7-AO5) -> FALSE | AQ7: =IF(AND(H18,AC7>=AQ5*2,AC7),AC7-AQ5) -> FALSE | AS7: =IF(AND(H6,AC7),AC7-AS5) -> FALSE | AU7: =IF(AND(H7,AC7),AC7-AU5) -> FALSE | AW7: =IF(AND(H8,AC7),AC7-AW5) -> FALSE | AY7: =IF(AND(H9,AC7),AC7-AY5) -> FALSE | BA7: =IF(AND(H10,AC7),AC7-BA5) -> FALSE | BC7: =IF(AND(H11,AC7),AC7-BC5) -> FALSE
F8: 2000円 | H8: FALSE | K8: 0.1 | M8: TRUE | Q8: ( | R8: =IF(AA13,(1000-N12)*INT(BE12/1000),0) -> 200 | T8: 円引き) | AA8: 0.1 | AC8: =IF(M8,AD4*0.9) -> 2178 | AE8: =IF(AND(H12,AC8>=AE5*2,AC8),AC8-AE5) -> 2078 | AG8: =IF(AND(H13,AC8>=AG5*2,AC8),AC8-AG5) -> 1678 | AI8: =IF(AND(H14,AC8>=AI5*2,AC8),AC8-AI5) -> 1178 | AK8: =IF(AND(H15,AC8>=AK5*2,AC8),AC8-AK5) -> FALSE | AM8: =IF(AND(H16,AC8>=AM5*2,AC8),AC8-AM5) -> FALSE | AO8: =IF(AND(H17,AC8>=AO5*2,AC8),AC8-AO5) -> FALSE | AQ8: =IF(AND(H18,AC8>=AQ5*2,AC8),AC8-AQ5) -> FALSE | AS8: =IF(AND(H6,AC8),AC8-AS5) -> FALSE | AU8: =IF(AND(H7,AC8),AC8-AU5) -> FALSE | AW8: =IF(AND(H8,AC8),AC8-AW5) -> FALSE | AY8: =IF(AND(H9,AC8),AC8-AY5) -> FALSE | BA8: =IF(AND(H10,AC8),AC8-BA5) -> FALSE | BC8: =IF(AND(H11,AC8),AC8-BC5) -> FALSE
F9: 3000円 | H9: FALSE | K9: 0.15 | M9: FALSE | O9: 会計全体 | R9: =IF(AA13,AA13,BE12) -> 978 | T9: =BE12 -> 1178 | AA9: 0.15 | AC9: =IF(M9,AD4*0.85) -> FALSE | AE9: =IF(AND(H12,AC9>=AE5*2,AC9),AC9-AE5) -> FALSE | AG9: =IF(AND(H13,AC9>=AG5*2,AC9),AC9-AG5) -> FALSE | AI9: =IF(AND(H14,AC9>=AI5*2,AC9),AC9-AI5) -> FALSE | AK9: =IF(AND(H15,AC9>=AK5*2,AC9),AC9-AK5) -> FALSE | AM9: =IF(AND(H16,AC9>=AM5*2,AC9),AC9-AM5) -> FALSE | AO9: =IF(AND(H17,AC9>=AO5*2,AC9),AC9-AO5) -> FALSE | AQ9: =IF(AND(H18,AC9>=AQ5*2,AC9),AC9-AQ5) -> FALSE | AS9: =IF(AND(H6,AC9),AC9-AS5) -> FALSE | AU9: =IF(AND(H7,AC9),AC9-AU5) -> FALSE | AW9: =IF(AND(H8,AC9),AC9-AW5) -> FALSE | AY9: =IF(AND(H9,AC9),AC9-AY5) -> FALSE | BA9: =IF(AND(H10,AC9),AC9-BA5) -> FALSE | BC9: =IF(AND(H11,AC9),AC9-BC5) -> FALSE
F10: 4000円 | H10: FALSE | K10: 0.2 | M10: FALSE | O10: 1人当たり | R10: =CEILING(R9/K2,1) -> 245 | T10: =T9/K2 -> 294.5 | AA10: 0.2 | AC10: =IF(M10,AD4*0.8) -> FALSE | AE10: =IF(AND(H12,AC10>=AE5*2,AC10),AC10-AE5) -> FALSE | AG10: =IF(AND(H13,AC10>=AG5*2,AC10),AC10-AG5) -> FALSE | AI10: =IF(AND(H14,AC10>=AI5*2,AC10),AC10-AI5) -> FALSE | AK10: =IF(AND(H15,AC10>=AK5*2,AC10),AC10-AK5) -> FALSE | AM10: =IF(AND(H16,AC10>=AM5*2,AC10),AC10-AM5) -> FALSE | AO10: =IF(AND(H17,AC10>=AO5*2,AC10),AC10-AO5) -> FALSE | AQ10: =IF(AND(H18,AC10>=AQ5*2,AC10),AC10-AQ5) -> FALSE | AS10: =IF(AND(H6,AC10),AC10-AS5) -> FALSE | AU10: =IF(AND(H7,AC10),AC10-AU5) -> FALSE | AW10: =IF(AND(H8,AC10),AC10-AW5) -> FALSE | AY10: =IF(AND(H9,AC10),AC10-AY5) -> FALSE | BA10: =IF(AND(H10,AC10),AC10-BA5) -> FALSE | BC10: =IF(AND(H11,AC10),AC10-BC5) -> FALSE
F11: 5000円 | H11: FALSE | K11: 0.3 | M11: FALSE | AA11: 0.3 | AC11: =IF(M11,AD4*0.7) -> FALSE | AE11: =IF(AND(H12,AC11>=AE5*2,AC11),AC11-AE5) -> FALSE | AG11: =IF(AND(H13,AC11>=AG5*2,AC11),AC11-AG5) -> FALSE | AI11: =IF(AND(H14,AC11>=AI5*2,AC11),AC11-AI5) -> FALSE | AK11: =IF(AND(H15,AC11>=AK5*2,AC11),AC11-AK5) -> FALSE | AM11: =IF(AND(H16,AC11>=AM5*2,AC11),AC11-AM5) -> FALSE | AO11: =IF(AND(H17,AC11>=AO5*2,AC11),AC11-AO5) -> FALSE | AQ11: =IF(AND(H18,AC11>=AQ5*2,AC11),AC11-AQ5) -> FALSE | AS11: =IF(AND(H6,AC11),AC11-AS5) -> FALSE | AU11: =IF(AND(H7,AC11),AC11-AU5) -> FALSE | AW11: =IF(AND(H8,AC11),AC11-AW5) -> FALSE | AY11: =IF(AND(H9,AC11),AC11-AY5) -> FALSE | BA11: =IF(AND(H10,AC11),AC11-BA5) -> FALSE | BC11: =IF(AND(H11,AC11),AC11-BC5) -> FALSE
D12: ゲーム | F12: 100円 | H12: TRUE | I12: 株主優待券 | L12: 仕入れ値 | N12: 800 | AA12: MIN | AC12: =IF(MIN(AC6:AC11)<>0,MIN(AC6:AC11)) -> 2178 | AE12: =IF(MIN(AE6:AE11)<>0,MIN(AE6:AE11)) -> 2078 | AG12: =IF(MIN(AG6:AG11)<>0,MIN(AG6:AG11)) -> 1678 | AI12: =IF(MIN(AI6:AI11)<>0,MIN(AI6:AI11)) -> 1178 | AK12: =IF(MIN(AK6:AK11)<>0,MIN(AK6:AK11)) -> FALSE | AM12: FALSE | AO12: =IF(MIN(AO6:AO11)<>0,MIN(AO6:AO11)) -> FALSE | AQ12: FALSE | AS12: =IF(MIN(AS6:AS11)<>0,MIN(AS6:AS11)) -> FALSE | AU12: =IF(MIN(AU6:AU11)<>0,MIN(AU6:AU11)) -> FALSE | AW12: FALSE | AY12: FALSE | BA12: =IF(MIN(BA6:BA11)<>0,MIN(BA6:BA11)) -> FALSE | BC12: FALSE | BE12: =IF(MIN(AC12:BD12)<>0,MIN(AC12:BD12)) -> 1178 | BG12: =_xlfn.TEXTJOIN(", ", TRUE, IF(AC6:BD11=BE12, ADDRESS(ROW(AC6:BD11), COLUMN(AC6:BD11), 4), "")) -> AI8
F13: 500円 | H13: TRUE | I13: TRUE | L13: 枚数 | N13: 9 | AA13: =IF(AND(I13,BE12>1000,INT(BE12/1000)<=N13),BE12-((1000-N12)*INT(BE12/1000))) -> 978 | BG13: =_xlfn.TEXTSPLIT(BG12,",") -> AI8
F14: 1000円 | H14: TRUE | I14: ポテト食べ放題 | M14: 810 | O14: FALSE
F15: 2000円 | H15: TRUE
F16: 3000円 | H16: TRUE | J16: カスタム金額 | N16: 0
F17: 4000円 | H17: TRUE | J17: ※会計全体の金額に追加
F18: 5000円 | H18: TRUE

Sheet 設定
A1: =料金計算!A1 -> 0.3.2 | D1: アプリケーション設定
B3: 起動時のアップデート確認 | K3: FALSE
A5: Webサイト： | D5: https://app.n624.jp/mnk/
